bitfinex/quotes_ETHUSD_20250731
["timestamp","ask_amount","ask_price","bid_price","bid_amount"]
[1753989614589,0.24344955,3763.5,3763.4,2.6571717]
[1753989614789,0.24344955,3763.5,3763.4,3.1563717]
[1753989615140,4.165,3764.9,3763.5,0.55]
[1753989615433,4.165,3765.0,3764.8,2.65617809]
[1753989615726,4.6238,3765.0,3764.8,2.65612694]
[1753989616131,0.4588,3764.9,3764.4,0.4992]
[1753989616334,0.46238,3764.8,3764.6,2.65625999]
[1753989616492,0.91788,3764.8,3764.6,2.65625999]
[1753989616927,0.91788,3764.8,3764.5,2.65638142]
[1753989617230,0.46238,3764.8,3764.7,2.65625415]
[1753989617530,0.46238,3764.8,3764.6,2.65631233]
[1753989617531,0.46238,3764.8,3763.9,2.65678331]
[1753989617717,0.46238,3764.8,3764.6,2.65631899]
[1753989617718,0.91788,3764.8,3764.6,2.65631899]
[1753989617921,0.46238,3764.8,3764.4,2.65640153]
[1753989618115,0.4555,3764.7,3764.2,2.65660698]
[1753989618429,0.4555,3764.6,3764.0,0.4814]
[1753989618613,0.4555,3764.6,3764.5,2.65639527]
[1753989619422,0.4555,3764.6,3764.1,2.65667755]
[1753989619737,0.86194657,3764.5,3764.2,2.65660241]
[1753989619903,0.40644657,3764.5,3763.8,2.65688931]
[1753989620107,0.46238,3764.8,3763.8,2.65688931]
[1753989620108,0.4555,3764.4,3764.3,2.65647841]
[1753989620699,0.46238,3764.8,3764.3,2.65647841]
[1753989620898,0.9459,3764.7,3763.9,0.4814]
[1753989621131,0.4555,3764.6,3764.0,2.65669751]
[1753989621344,0.40645902,3764.5,3764.0,2.65670462]
[1753989621550,0.4555,3764.4,3763.9,2.65681872]
[1753989621722,4.6544,3764.4,3763.7,2.65694326]
[1753989621917,1.23054683,3764.3,3763.9,2.65680569]
[1753989622241,0.4555,3764.2,3763.9,2.65680569]
[1753989622615,0.4555,3764.1,3763.8,2.65687418]
[1753989622823,0.4555,3764.1,3763.9,2.65677016]
[1753989623206,0.77504683,3764.3,3764.0,2.65674814]
[1753989623408,1.23054683,3764.3,3764.1,2.65663302]
[1753989623751,0.4555,3764.2,3764.0,2.65672468]
[1753989624070,0.53945468,3764.1,3764.0,2.65672468]
[1753989624356,0.53945468,3764.1,3763.8,2.65687156]
[1753989624357,0.99495468,3764.1,3763.8,2.65686767]
[1753989624529,0.53945468,3764.1,3764.0,0.0272]
[1753989624861,0.78316292,3764.1,3764.0,0.0272]
[1753989625155,1.23866292,3764.1,3764.0,0.0272]
[1753989625860,4.86320824,3764.1,3764.0,0.0272]
[1753989626770,8.01028579,3764.1,3764.0,0.0272]
[1753989626922,8.25445336,3764.1,3764.0,0.0272]
[1753989627359,4.65187581,3764.1,3763.7,2.65691871]
[1753989627664,0.48787581,3764.0,3763.8,0.4814]
[1753989627855,0.48787581,3763.9,3763.8,3.13822924]
[1753989628020,0.48787581,3763.9,3763.5,0.001]
[1753989628363,1.45411339,3763.8,3763.5,0.001]
[1753989628557,0.48966678,3763.7,3763.6,3.1384305]
[1753989628931,0.48966678,3763.7,3763.6,2.6570305]
[1753989629133,0.94516678,3763.7,3763.5,0.001]
[1753989629354,4.65366678,3763.6,3763.5,2.6581011]
[1753989629666,5.16458346,3763.6,3763.5,2.6581011]
[1753989629872,5.16503852,3763.6,3763.5,2.6581011]
[1753989630035,4.65412184,3763.6,3763.5,3.1395011]
[1753989630857,5.60002184,3763.6,3763.5,0.001]
[1753989631543,5.10962184,3763.6,3763.5,0.001]
[1753989631749,5.09962184,3763.6,3763.5,0.001]
[1753989632069,5.59002184,3763.6,3763.5,0.001]
[1753989632248,5.92432089,3763.6,3763.1,2.65835123]
[1753989632461,1.4692356,3763.5,3763.1,0.001]
[1753989632685,2.65731292,3763.2,3763.1,0.001]
[1753989632980,7.31143476,3763.2,3763.1,0.001]
[1753989633320,8.25733476,3763.2,3763.1,0.001]
[1753989633518,9.34878541,3763.2,3763.1,0.001]
[1753989633791,6.20107249,3763.2,3763.1,0.001]
[1753989634084,5.10962184,3763.2,3763.1,0.001]
[1753989634249,7.76693476,3763.2,3763.1,0.001]
[1753989634453,5.10962184,3763.2,3763.1,0.001]
[1753989634854,7.76693476,3763.2,3763.1,0.001]
[1753989635064,7.52210137,3763.2,3763.1,0.001]
[1753989635267,8.78569931,3763.2,3763.1,0.001]
[1753989635587,12.27609931,3763.2,3763.1,0.001]
[1753989636273,9.12838639,3763.2,3763.1,0.001]
[1753989636460,5.67288639,3763.2,3763.1,0.4824]
[1753989636665,4.65495847,3763.2,3763.1,3.13978354]
[1753989638280,0.49095847,3763.2,3763.1,3.50528354]
[1753989638852,0.49127989,3763.2,3763.1,3.50528354]
[1753989639047,0.49127989,3763.2,3763.1,4.97837837]
[1753989640981,0.49127989,3763.2,3763.1,3.50528354]
[1753989641274,0.49127989,3763.2,3763.1,3.13978354]
[1753989641442,0.49127989,3763.2,3763.1,3.50528354]
[1753989641641,4.164,3764.0,3763.7,2.65692639]
[1753989641845,0.49104516,3763.9,3763.6,2.6570305]
[1753989642046,0.49104516,3763.8,3763.7,3.1383599]
[1753989643148,0.49103657,3763.8,3763.7,3.1383599]
[1753989643741,0.4575,3764.8,3764.3,2.6565364]
[1753989643742,0.002,3764.8,3764.3,2.6565364]
[1753989644043,0.002,3764.8,3764.4,0.4814]
[1753989644245,0.002,3764.8,3764.7,2.65625415]
[1753989644641,0.002,3764.8,3764.7,3.13765415]
[1753989646299,4.163,3765.9,3765.1,2.65597195]
[1753989646673,0.4743,3765.7,3765.1,2.65597195]
[1753989646878,4.163,3765.9,3765.0,2.65598975]
[1753989647089,4.6373,3765.9,3765.1,2.65597195]
[1753989647264,0.4913,3766.1,3765.1,0.4871]
[1753989647466,0.4743,3765.8,3765.1,3.14307195]
[1753989648508,0.4743,3766.2,3765.1,4.08849031]
[1753989648808,4.163,3766.4,3765.1,7.63849031]
[1753989649312,4.6373,3766.4,3765.1,7.63849031]
[1753989649510,4.6373,3766.4,3765.1,11.80149031]
[1753989650063,0.4743,3766.1,3765.1,6.72299031]
[1753989650176,0.4743,3766.1,3765.1,11.25149031]
[1753989650373,4.163,3766.6,3766.0,2.65527268]
[1753989650576,4.8922075,3766.6,3766.1,2.65525135]
[1753989650918,0.4743,3766.5,3766.2,2.65519621]
[1753989651072,0.4743,3766.5,3766.1,3.14236321]
[1753989651508,0.4743,3766.5,3766.1,0.4871]
[1753989651703,0.4743,3766.4,3765.4,0.3655]
[1753989651906,0.4743,3766.4,3765.5,0.4871]
[1753989652103,4.162,3766.5,3766.1,2.65522345]
[1753989652408,0.4743,3766.7,3766.2,3.14222878]
[1753989652574,0.4743,3766.7,3766.2,0.4871]
[1753989652774,0.4743,3766.6,3766.3,2.65507885]
[1753989652978,0.4743,3766.6,3766.3,2.65512572]
[1753989653208,0.4743,3766.6,3766.4,2.65505314]
[1753989653424,6.383,3767.1,3766.5,2.65498473]
[1753989653625,0.57800902,3767.0,3766.6,2.65491298]
[1753989653853,0.57800902,3767.0,3766.1,9.02341757]
[1753989653854,4.162,3767.1,3767.0,2.65463233]
[1753989654719,0.002,3767.4,3767.3,2.65442093]
[1753989655174,0.002,3767.4,3767.3,3.14152093]
[1753989655926,0.24691614,3767.4,3767.3,3.14152093]
[1753989657422,0.002,3767.4,3767.3,3.14152093]
[1753989658289,0.002,3767.4,3767.3,12.1649385]
[1753989659611,0.002,3767.4,3767.3,7.30152093]
[1753989660015,0.24491614,3767.7,3767.5,0.55]
[1753989660316,0.002,3767.8,3767.7,2.65413912]
[1753989660516,0.4743,3767.7,3767.6,2.65420957]
[1753989660675,0.4743,3767.7,3767.4,4.163]
[1753989660880,0.71849338,3767.6,3767.0,0.4871]
[1753989661088,0.24419338,3767.5,3767.3,2.65437144]
[1753989661300,0.4743,3767.4,3767.3,2.65437144]
[1753989661503,0.71849338,3767.4,3767.3,2.65437144]
[1753989662216,0.71849338,3767.4,3767.3,12.16488901]
[1753989662217,0.24419338,3767.4,3767.3,12.16488901]
[1753989662403,0.4743,3767.4,3767.1,2.65455833]
[1753989662604,0.24419338,3767.3,3767.2,2.65449139]
[1753989662777,0.4743,3767.4,3767.3,2.65442093]
[1753989663119,0.002,3767.8,3767.6,2.65419793]
[1753989663317,0.72023583,3767.8,3767.6,2.65419793]
[1753989663624,0.71823583,3767.7,3767.4,2.65429359]
[1753989663790,0.24393583,3767.6,3766.7,0.4871]
[1753989663991,0.4743,3767.6,3767.1,2.65451196]
[1753989664182,2.65435048,3767.4,3766.7,2.65484376]
[1753989664381,2.89839288,3767.3,3766.6,0.4871]
[1753989664615,0.24393632,3767.2,3766.7,2.65478636]
[1753989664816,0.24393632,3767.2,3766.5,4.165]
[1753989665020,0.4743,3767.1,3766.5,0.4871]
[1753989665246,0.4743,3767.1,3765.8,0.4871]
[1753989665247,0.24392894,3767.0,3765.8,0.4871]
[1753989665452,2.65484641,3766.7,3765.8,2.65541264]
[1753989665746,1.20952894,3766.6,3766.0,2.6553247]
[1753989666046,1.20952894,3766.5,3765.2,2.65590141]
[1753989666366,3.37330339,3766.4,3765.7,2.65553042]
[1753989666508,1.24271801,3766.3,3763.3,0.797661]
[1753989666716,1.20952894,3766.2,3764.2,0.4871]
[1753989666951,2.65597557,3765.1,3764.2,4.169]
[1753989667115,0.4743,3765.0,3764.6,2.65632043]
[1753989667465,0.4743,3764.9,3764.1,7.31272829]
[1753989667669,0.4743,3764.9,3764.1,0.4871]
[1753989667831,0.4913,3764.8,3764.2,2.65659326]
[1753989668153,0.4913,3764.8,3764.0,2.65674056]
[1753989668154,0.4743,3764.7,3764.0,2.65674056]
[1753989668717,0.4743,3764.7,3763.7,0.4871]
[1753989668718,0.03320405,3764.6,3763.7,0.4871]
[1753989669025,0.4743,3764.5,3764.0,2.65674086]
[1753989669225,0.4743,3764.4,3764.0,2.65674086]
[1753989669424,0.4743,3764.3,3764.0,0.0307]
[1753989669833,0.4743,3764.2,3764.0,0.0307]
[1753989670034,0.4743,3764.2,3764.1,2.65667755]
[1753989670221,0.4743,3764.2,3764.0,0.0307]
[1753989670427,0.4743,3764.1,3764.0,2.68742875]
[1753989670637,0.4743,3764.1,3764.0,0.0307]
[1753989671517,0.4743,3764.1,3764.0,2.68744814]
[1753989671849,0.4743,3764.1,3764.0,0.0307]
[1753989672352,0.4743,3764.1,3764.0,2.68844814]
[1753989673252,0.4743,3764.1,3764.0,0.0317]
[1753989673439,0.9656,3764.1,3764.0,0.0317]
[1753989674554,1.32781243,3764.1,3764.0,0.0317]
[1753989674957,3.62227755,3764.1,3764.0,0.0317]
[1753989675254,3.65548601,3764.1,3764.0,0.0317]
[1753989676349,0.9656,3764.1,3764.0,0.0317]
[1753989676544,3.62227755,3764.1,3764.0,0.0317]
[1753989678394,0.9656,3764.1,3764.0,0.0317]
[1753989678528,4.28449875,3764.1,3764.0,0.0317]
[1753989679472,7.31770721,3764.1,3764.0,0.0317]
[1753989679777,2.65749756,3763.0,3762.2,0.4549]
[1753989679920,2.65749756,3763.0,3762.3,2.65793179]
[1753989679921,4.19621905,3762.9,3762.3,2.65793179]
[1753989680269,0.4301,3762.8,3762.3,2.65793179]
[1753989680497,0.4301,3762.8,3762.4,0.4549]
[1753989680657,4.163,3762.9,3762.8,2.6575954]
[1753989680848,4.163,3762.9,3762.8,0.4549]
[1753989681372,4.5931,3762.9,3762.6,2.65772097]
[1753989681670,4.5931,3762.9,3762.7,0.4549]
[1753989681671,4.163,3762.9,3762.7,0.4549]
[1753989682174,3.08661357,3764.4,3762.8,0.8204]
[1753989682349,4.163,3763.8,3762.9,7.2078855]
[1753989682534,4.163,3763.8,3763.6,2.65698242]
[1753989682977,4.163,3763.8,3762.7,2.65764934]
[1753989682978,0.4301,3763.7,3762.1,6.74]
[1753989683134,0.8464,3763.7,3763.3,2.6571941]
[1753989683334,0.4163,3763.7,3763.2,2.65730177]
[1753989683563,4.164,3763.6,3763.3,2.65723823]
[1753989683872,4.164,3763.6,3763.5,2.6571011]
[1753989684059,4.163,3763.6,3762.6,0.3655]
[1753989684264,4.163,3763.6,3763.3,0.4549]
[1753989684566,4.163,3763.5,3763.4,0.4549]
[1753989684979,4.163,3763.5,3763.4,3.1120717]
[1753989685272,4.163,3763.5,3763.0,0.4549]
[1753989685477,4.163,3763.5,3763.1,0.4549]
[1753989685675,4.163,3763.5,3763.2,2.65731292]
[1753989686079,4.163,3763.5,3762.7,2.65766603]
[1753989686257,4.163,3763.5,3763.2,0.4549]
[1753989686456,4.163,3763.5,3763.3,2.65718152]
[1753989686655,4.163,3763.5,3763.2,0.4549]
[1753989686973,4.163,3763.5,3763.2,3.11219208]
[1753989687155,4.163,3763.4,3763.2,3.11219208]
[1753989687355,4.163,3763.4,3763.2,0.4549]
[1753989687572,0.4301,3763.7,3763.2,0.4549]
[1753989687741,4.163,3763.6,3763.2,0.4549]
[1753989688147,0.4301,3763.7,3763.2,3.11220366]
[1753989688372,4.163,3763.6,3763.2,3.11220366]
[1753989688773,0.70849205,3763.5,3762.4,0.4549]
[1753989688974,2.65786052,3762.5,3761.8,0.4549]
[1753989689177,4.163,3762.4,3761.8,0.4549]
[1753989689345,4.163,3762.4,3761.0,3.02431272]
[1753989689346,0.4301,3762.3,3761.3,3.11353794]
[1753989689689,6.82102638,3762.2,3761.3,0.4549]
[1753989689859,2.65808989,3762.1,3761.3,0.4549]
[1753989690056,2.65816055,3762.0,3761.3,0.4549]
[1753989690280,2.65823538,3761.9,3761.3,0.4549]
[1753989690482,2.6581833,3762.0,3761.3,3.1135018]
[1753989690683,3.64911557,3762.0,3761.3,3.11355425]
[1753989690993,2.65823135,3761.9,3761.3,0.4549]
[1753989691163,3.64911408,3762.0,3761.3,0.4549]
[1753989691587,2.65823785,3761.9,3761.3,3.11354204]
[1753989691892,0.99093143,3762.0,3761.3,3.11354204]
[1753989692294,0.99093143,3762.0,3761.4,2.65853734]
[1753989692518,6.82103619,3762.2,3761.4,2.65853734]
[1753989692519,4.164,3762.2,3762.0,2.65814589]
[1753989692811,4.164,3762.2,3761.7,0.4549]
[1753989692991,0.4301,3762.1,3761.4,2.65858123]
[1753989693161,0.772946,3762.0,3761.4,2.65856451]
[1753989693357,0.772946,3762.0,3761.3,0.4549]
[1753989693562,3.43110772,3762.0,3761.3,3.11350912]
[1753989693763,0.772946,3762.0,3761.3,0.4549]
[1753989693983,0.772946,3762.0,3761.5,2.65846423]
[1753989694197,1.28034754,3761.9,3761.4,2.65856509]
[1753989694385,0.85024754,3761.9,3761.5,2.65850941]
[1753989694595,0.4301,3761.8,3761.3,0.4559]
[1753989694965,0.4301,3761.8,3761.5,2.65850691]
[1753989695166,4.5941,3761.7,3761.3,0.001]
[1753989695385,4.5941,3761.7,3761.3,2.65962884]
[1753989695615,4.5941,3761.7,3761.3,0.4559]
[1753989695822,2.65851389,3761.5,3761.3,0.001]
[1753989695983,3.12177584,3761.6,3761.3,0.001]
[1753989695984,0.4301,3761.6,3761.3,0.001]
[1753989696719,0.4301,3761.5,3761.3,0.001]
[1753989697119,2.65844416,3761.6,3761.3,0.001]
[1753989697425,0.4301,3761.4,3761.3,0.001]
[1753989697984,3.56608456,3761.4,3761.3,0.001]
[1753989698984,7.11608456,3761.4,3761.3,0.001]
[1753989699185,7.35953462,3761.4,3761.3,0.001]
[1753989699387,8.8764653,3761.4,3761.3,0.001]
[1753989699787,9.1198915,3761.4,3761.3,0.001]
[1753989700285,9.1198915,3761.4,3761.3,1e-08]
[1753989701190,13.2848915,3761.4,3761.3,1e-08]
[1753989701388,2.65886732,3761.0,3760.9,1e-08]
[1753989701589,10.61699604,3761.0,3760.9,1e-08]
[1753989701826,11.72395466,3761.0,3760.9,1e-08]
[1753989703431,11.48082594,3761.0,3760.9,1e-08]
[1753989704127,11.28136732,3761.0,3760.9,1e-08]
[1753989704305,12.86902892,3761.0,3760.9,1e-08]
[1753989704701,10.2101616,3761.0,3760.9,1e-08]
[1753989704914,9.7327616,3761.0,3760.9,1e-08]
[1753989705434,9.97545598,3761.0,3760.9,1e-08]
[1753989705741,9.42545598,3761.0,3760.9,1e-08]
[1753989706040,4.165,3761.0,3760.9,3.11383803]
[1753989706249,4.40760404,3761.0,3760.9,3.11383803]
[1753989706895,4.40760404,3761.0,3760.9,0.45490001]
[1753989707429,4.40760404,3761.0,3760.9,1e-08]
[1753989708830,4.86110404,3761.0,3760.2,0.4961]
[1753989709031,4.86110404,3761.0,3759.9,3.15573209]
[1753989709032,0.55,3760.8,3759.9,3.15573209]
[1753989709328,4.40960404,3760.7,3760.0,3.15563052]
[1753989709498,0.82832282,3760.6,3760.0,3.15563052]
[1753989709695,4.41060404,3760.5,3760.0,3.15563052]
[1753989709907,0.24260404,3760.4,3760.1,0.4961]
[1753989710121,4.167,3760.3,3760.2,0.4961]
[1753989710345,4.90913632,3760.3,3760.2,0.4961]
[1753989710831,0.24260404,3760.3,3760.2,0.4961]
[1753989711135,0.24260404,3760.4,3760.3,2.65936228]
[1753989711429,4.175,3760.7,3760.6,2.65915013]
[1753989711733,0.34535,3761.4,3761.0,2.65885756]
[1753989712034,0.4535,3761.5,3760.9,2.65891292]
[1753989712035,4.65908534,3761.3,3760.9,2.65891292]
[1753989712233,0.24254267,3761.2,3761.1,2.65878546]
[1753989712793,0.22254267,3761.2,3761.1,2.65878546]
[1753989713098,0.22254267,3761.2,3761.1,3.15488546]
[1753989713293,4.39654267,3761.2,3761.1,3.15488546]
[1753989713499,0.22254267,3761.2,3761.1,3.15488546]
[1753989714643,0.22254267,3761.2,3761.1,3.52038546]
[1753989715000,0.22254267,3761.2,3761.1,5.04174621]
[1753989715437,4.172,3761.9,3761.4,2.65856822]
[1753989715650,0.73001978,3761.8,3761.1,0.4961]
[1753989715930,4.41429101,3761.7,3761.5,2.65846741]
[1753989716131,0.24329101,3761.6,3761.5,2.65846741]
[1753989716530,0.24329101,3761.6,3761.1,0.4961]
[1753989716531,0.97437769,3761.6,3761.1,0.4961]
[1753989716711,0.24329101,3761.5,3761.2,2.65870834]
[1753989716907,4.17,3761.4,3761.3,2.65864188]
[1753989717107,4.17,3761.4,3761.3,3.15474188]
[1753989717321,4.41586967,3761.4,3761.3,3.15474188]
[1753989717628,0.002,3761.7,3761.6,2.65844321]
[1753989717838,0.24588264,3761.7,3761.6,2.65844321]
[1753989718136,0.24588264,3761.7,3761.6,3.15454321]
[1753989718626,0.002,3761.7,3761.6,3.15454321]
[1753989719031,0.002,3761.7,3761.6,3.52004321]
[1753989719236,0.24588264,3761.7,3761.6,3.52004321]
[1753989719418,0.24588264,3761.7,3761.6,5.04133442]
[1753989720154,0.002,3761.7,3761.6,5.04133442]
[1753989721717,0.24644483,3761.7,3761.6,5.04133442]
[1753989721916,0.24644483,3761.7,3761.6,3.15454321]
[1753989722127,0.002,3761.7,3761.6,3.15454321]
[1753989722548,0.002,3761.7,3761.2,7.32276721]
[1753989722859,0.002,3761.7,3761.6,2.65844321]
[1753989723006,0.002,3761.7,3761.4,2.65858456]
[1753989723213,0.002,3761.7,3761.6,2.65844321]
[1753989723448,0.002,3761.7,3761.0,4.169]
[1753989723743,0.002,3761.7,3761.6,2.65844321]
[1753989724140,0.002,3761.7,3761.4,0.4961]
[1753989724438,0.002,3761.7,3761.6,2.65844321]
[1753989724842,0.24676638,3761.7,3761.6,3.15454321]
[1753989725046,0.4535,3762.9,3762.6,2.65769719]
[1753989725202,0.4508,3763.3,3761.6,17.30269173]
[1753989725203,0.24485785,3762.8,3762.3,9.03434154]
[1753989725433,4.168,3763.1,3762.8,2.6575954]
[1753989725638,0.24482082,3763.0,3762.9,3.15362478]
[1753989725840,4.168,3763.8,3763.0,2.65743156]
[1753989726040,1.61146501,3763.7,3762.9,0.4961]
[1753989726240,0.24482861,3763.6,3763.3,2.65722057]
[1753989726435,0.24482861,3763.5,3763.4,3.1532613]
[1753989727969,0.27796217,3764.4,3763.9,2.65678559]
[1753989728172,0.69825635,3764.3,3763.6,0.4961]
[1753989728349,0.24475635,3764.2,3763.9,2.65675551]
[1753989728546,0.24475635,3764.1,3763.6,0.4961]
[1753989728851,0.24475635,3764.0,3763.7,2.6569599]
[1753989729051,0.24475635,3763.9,3763.6,3.15311069]
[1753989729254,0.24475635,3763.8,3763.7,2.6569599]
[1753989729480,0.24475635,3763.8,3763.6,3.15310882]
[1753989729751,0.24475635,3763.7,3763.6,3.15310882]
[1753989730164,0.24475635,3763.7,3647.3,0.16457726]
[1753989730165,0.24475635,3763.7,3763.3,0.4961]
[1753989730504,0.24475635,3763.6,3763.3,2.65721651]
[1753989730669,0.24475635,3763.5,3763.3,2.65721651]
[1753989731004,0.24475635,3763.4,3763.2,2.65729368]
[1753989731308,0.24475635,3763.3,3763.2,2.65731292]
[1753989731455,0.24475635,3763.3,3763.1,2.65736472]
[1753989731657,0.24440915,3763.2,3763.1,3.15348354]
[1753989731887,0.24443024,3763.4,3763.1,0.4961]
[1753989732066,0.24443024,3763.4,3762.7,3.15375427]
[1753989732410,0.24443024,3763.3,3762.7,0.4961]
[1753989732772,0.27764576,3763.3,3762.9,2.65751756]
[1753989733038,0.82554268,3763.2,3762.7,0.4961]
[1753989733324,0.82554268,3763.2,3762.8,2.6575865]
[1753989733325,0.69793024,3763.1,3762.8,2.6575865]
[1753989733620,0.24443024,3763.0,3762.9,2.65752478]
[1753989733774,2.65712608,3763.5,3763.0,2.65745415]
[1753989733775,0.4535,3763.5,3763.0,2.65745415]
[1753989733975,1.27435137,3763.4,3763.1,2.65732005]
[1753989734192,0.24436156,3763.3,3763.0,3.15355094]
[1753989734381,0.4535,3763.4,3763.0,3.15355094]
[1753989734991,0.4535,3763.4,3763.2,2.65730596]
[1753989735184,3.4535,3763.8,3763.1,0.4961]
[1753989735385,1.31709587,3763.7,3763.1,0.4961]
[1753989735585,0.24418532,3763.6,3763.1,0.4961]
[1753989735808,0.24418532,3763.6,3763.2,0.4961]
[1753989735984,0.24418532,3763.6,3763.1,2.65738354]
[1753989736196,1.35838567,3763.6,3763.1,3.15348354]
[1753989736399,0.24418532,3763.5,3763.3,2.65722129]
[1753989736582,0.24418532,3763.5,3763.3,0.4848]
[1753989737216,0.48822119,3763.5,3763.3,0.4848]
[1753989737392,0.24418532,3763.4,3762.9,0.4848]
[1753989737599,0.64846334,3763.4,3762.9,3.14232356]
[1753989737798,0.94182119,3763.3,3762.9,2.6575053]
[1753989737983,0.48822119,3763.2,3762.8,2.65756974]
[1753989738183,0.94182119,3763.1,3762.6,0.4848]
[1753989738383,0.94182119,3763.1,3762.7,0.4848]
[1753989738384,0.24403587,3763.0,3762.7,0.4848]
[1753989738685,0.24403587,3763.0,3762.8,0.4848]
[1753989739023,0.24403587,3763.0,3762.5,3.1425641]
[1753989739327,1.03312184,3762.9,3762.4,2.65782403]
[1753989739492,0.48805238,3762.8,3762.4,2.65782403]
[1753989739697,0.69763587,3762.8,3762.4,0.4848]
[1753989739902,0.24403587,3762.7,3762.4,0.4848]
[1753989740304,0.4536,3762.7,3762.4,0.4848]
[1753989740550,0.24403587,3762.6,3762.4,3.14261792]
[1753989740751,0.4536,3762.7,3762.3,3.74]
[1753989740963,2.65767074,3762.7,3762.3,3.74]
[1753989741163,0.99711968,3762.6,3762.3,3.74]
[1753989741369,0.24420207,3762.5,3762.3,4.2248]
[1753989741736,0.24420207,3762.8,3762.6,2.65769135]
[1753989741961,4.164,3763.1,3762.6,2.65773667]
[1753989741962,0.24428419,3762.7,3762.6,2.65773667]
[1753989742157,0.24420207,3763.0,3762.8,2.6575954]
[1753989742365,0.24437672,3762.9,3762.8,2.6575954]
[1753989742761,0.24437672,3762.9,3762.8,3.1423954]
[1753989742934,0.24437672,3762.9,3762.5,0.4848]
[1753989743145,0.24435908,3762.8,3762.6,0.4848]
[1753989743460,0.69780207,3763.0,3762.6,2.65767988]
[1753989743661,0.48865286,3762.9,3762.4,0.4848]
[1753989743848,0.24445079,3762.8,3762.7,2.65766603]
[1753989744050,0.48865286,3762.8,3762.7,3.14246603]
[1753989744585,0.48865286,3762.8,3762.7,0.4848]
[1753989744785,0.48865286,3762.8,3762.7,3.14246603]
[1753989745168,4.164,3763.1,3762.9,2.65752478]
[1753989745369,0.4892909,3763.0,3762.9,0.4848]
[1753989745575,0.4892909,3763.0,3762.9,2.65752478]
[1753989746068,0.48934706,3763.0,3762.9,3.14232478]
[1753989746280,0.24464545,3763.0,3762.9,3.14232478]
[1753989746757,0.48961284,3763.4,3763.3,2.65724231]
[1753989747084,0.48961361,3763.4,3763.3,2.65724231]
[1753989748006,0.48961361,3763.4,3763.3,3.14204231]
[1753989748187,0.48961361,3763.4,3763.0,2.65743878]
[1753989748351,0.24481065,3763.3,3763.2,3.14211292]
[1753989750680,0.24481065,3763.3,3763.2,3.50761292]
[1753989751279,0.24481065,3763.3,3763.2,3.14211292]
[1753989751998,0.24481065,3763.3,3763.2,3.50761292]
[1753989752151,0.24488213,3763.4,3763.2,3.50761292]
[1753989752357,0.24481065,3763.3,3763.2,6.39731292]
[1753989752566,0.24488213,3763.4,3763.3,2.65724231]
[1753989752787,0.48980943,3763.4,3763.3,2.65724231]
[1753989753020,0.48980943,3763.4,3763.3,3.14204231]
[1753989753490,0.48980943,3763.4,3762.9,3.14228496]
[1753989753690,0.2449273,3763.3,3762.6,3.74]
[1753989753894,0.2449273,3763.3,3762.2,0.4848]
[1753989754187,4.6473,3763.2,3762.0,4.163]
[1753989754389,1.00352037,3763.1,3762.4,2.65784005]
[1753989754593,0.48980943,3763.0,3762.3,2.65790604]
[1753989754887,0.2449273,3762.9,3762.3,2.65790604]
[1753989755068,0.48980943,3762.9,3762.3,2.65792202]
[1753989755269,0.48980943,3762.8,3762.3,2.65792202]
[1753989755469,0.2449273,3762.7,3762.4,2.65783381]
[1753989755789,0.24488213,3762.6,3762.5,2.6578073]
[1753989755992,0.48980943,3762.6,3762.5,2.6578073]
[1753989756190,0.48980943,3762.6,3762.3,2.65793859]
[1753989756359,0.48980943,3762.5,3762.3,2.65793859]
[1753989756556,0.48980943,3762.4,3762.3,2.65788835]
[1753989756965,0.49010265,3762.4,3762.3,2.65788835]
[1753989757265,0.49010265,3762.4,3762.1,2.65808093]
[1753989757473,0.49010265,3762.3,3762.2,2.65801487]
[1753989757658,0.49010265,3762.3,3762.1,2.65807295]
[1753989757991,0.49010265,3762.2,3761.8,0.4848]
[1753989758189,0.49010265,3762.1,3761.6,4.163]
[1753989758359,0.91823,3762.5,3762.0,2.65816055]
[1753989758691,0.94384254,3762.4,3761.7,0.4848]
[1753989758891,0.49024254,3762.3,3762.1,2.65808745]
[1753989759078,0.49024254,3762.2,3762.1,2.65808989]
[1753989759291,0.24512127,3762.2,3762.1,2.65808989]
[1753989759494,0.24512127,3762.2,3761.9,2.65822822]
[1753989759696,0.4536,3762.1,3761.8,2.65825828]
[1753989759904,0.49024254,3762.0,3761.9,2.65823121]
[1753989760108,0.49024254,3762.0,3761.9,3.14303121]
[1753989760592,0.24512127,3762.0,3761.9,3.14303121]
[1753989760910,0.49020282,3762.3,3762.0,2.65810787]
[1753989761112,0.94380276,3762.2,3761.7,2.65835138]
[1753989761329,0.94380276,3762.1,3761.3,3.001]
[1753989761527,0.49010816,3762.0,3761.9,2.65820656]
[1753989761688,0.24505408,3762.0,3761.9,2.65820656]
[1753989761874,0.69865408,3762.0,3761.6,2.65839401]
[1753989762074,0.49010816,3761.9,3761.6,2.65839401]
[1753989762270,0.94370816,3761.8,3761.5,2.65850123]
[1753989762494,0.94370816,3761.7,3761.4,2.65856288]
[1753989762709,0.49001185,3761.6,3761.4,0.4848]
[1753989762897,0.24495777,3761.5,3761.3,2.65960426]
[1753989763114,0.24495777,3761.5,3761.4,2.65858456]
[1753989763833,0.09483976,3761.5,3761.3,0.001]
[1753989764150,7.79171686,3761.4,3761.3,0.001]
[1753989764275,9.34839561,3761.4,3761.3,0.001]
[1753989765530,0.24505408,3761.4,3761.3,0.001]
[1753989766078,0.69865408,3761.4,3761.3,0.001]
[1753989766489,0.4536,3761.4,3761.3,0.001]
[1753989766690,0.69792673,3761.4,3761.3,0.001]
[1753989766896,3.83921129,3761.4,3761.3,0.001]
[1753989767108,4.90527892,3761.4,3761.3,0.001]
[1753989767724,7.93851122,3761.4,3761.3,0.001]
[1753989767947,8.45527892,3761.4,3761.3,1e-08]
[1753989772411,2.65917602,3760.6,3760.1,0.43680001]
[1753989772619,4.67524433,3760.5,3760.1,0.43680001]
[1753989772820,4.40832673,3760.4,3760.0,2.65954724]
[1753989773124,4.164,3760.4,3760.1,2.65948662]
[1753989773529,4.164,3760.4,3760.3,2.65936228]
[1753989773717,4.164,3760.4,3760.3,3.59329756]
[1753989773922,4.164,3760.7,3760.6,2.65908111]
[1753989774095,0.4517,3761.7,3760.6,2.65908111]
[1753989774096,4.164,3760.9,3760.8,2.65900872]